[Event "RUS-chT Rapid Men 2018"]
[Site "Sochi"]
[Date "2018.10.08"]
[Round "2"]
[White "Okun, Evgeny"]
[Black "Terzyan, Nazar"]
[Result "1/2-1/2"]
[ECO "A00"]
[WhiteElo "2163"]
[BlackElo "1757"]
[Annotator "NA"]
[PlyCount "89"]
[EventDate "2018.10.05"]
[EventType "swiss"]
[EventCountry "RUS"]
[SourceTitle "playchess.com"]
[Source "ChessBase"]
[SourceQuality "1"]
[TimeControl "900+10"]

1. g3 {[%emt 0:00:00]} Nf6 {[%emt 0:00:00]} 2. Bg2 {[%emt 0:00:00]} d5 {[%emt 0:00:00]} 3. f4 {[%emt 0:00:00]} e6 {[%emt 0:00:10]} 4. Nf3 {[%emt 0:00:00]} Bd6 {[%emt 0:00:06]} 5. d3 {[%emt 0:00:00]} b6 {[%emt 0:00:02]} 6. O-O {[%emt 0:01:55]} Nbd7 {[%emt 0:00:06]} 7. e4 {[%emt 0:00:49]} dxe4 {[%emt 0:00:19]} 8. dxe4 {[%emt 0:00:19]} Bc5+ {[%emt 0:01:05]} 9. Kh1 {[%emt 0:00:02]} Nxe4 {[%emt 0:00:02]} 10. Ng5 {[%emt 0:00:34]} Nxg5 {[%emt 0:01:06]} 11. Bxa8 {[%emt 0:00:02]} Nh3 {[%emt 0:00:26]} 12. Kg2 {[%emt 0:01:34]} Ba6 {[%emt 0:00:08]} 13. Bc6 {[%emt 0:00:32]} Bxf1+ {[%emt 0:00:03]} 14. Qxf1 {[%emt 0:01:27]} Nf2 {[%emt 0:07:59]} 15. b4 {[%emt 0:00:29]} Qf6 {[%emt 0:01:14]} 16. c3 {[%emt 0:04:30]} Bxb4 {[%emt 0:00:53]} 17. Qb5 {[%emt 0:04:04]} O-O {[%emt 0:00:28]} 18. Bxd7 {[%emt 0:00:50]} Bxc3 {[%emt 0:00:17]} 19. Nxc3 {[%emt 0:00:17]} Qxc3 {[%emt 0:00:02]} 20. Qb2 {[%emt 0:00:18]} Qc5 {[%emt 0:00:53]} 21. Qxf2 {[%emt 0:00:21]} Qd5+ {[%emt 0:00:02]} 22. Kg1 {[%emt 0:00:12]} Qd1+ {[%emt 0:00:06]} 23. Kg2 {[%emt 0:00:03]} Qd5+ {[%emt 0:00:02]} 24. Qf3 {[%emt 0:00:19]} Qxd7 {[%emt 0:00:02]} 25. Bb2 {[%emt 0:00:11]} Qd2+ {[%emt 0:00:11]} 26. Qf2 {[%emt 0:00:02]} Rd8 {[%emt 0:00:01]} 27. Rf1 {[%emt 0:00:07]} Qd5+ {[%emt 0:00:03]} 28. Qf3 {[%emt 0:00:01]} Qxa2 29. Rf2 {[%emt 0:00:01]} Qc4 {[%emt 0:00:34]} 30. Qg4 {[%emt 0:00:22]} Qe4+ {[%emt 0:00:15]} 31. Kg1 {[%emt 0:00:24]} Qb1+ {[%emt 0:00:13]} 32. Kg2 {[%emt 0:00:01]} Qe4+ {[%emt 0:00:01]} 33. Kg1 {[%emt 0:00:02]} Qb1+ {[%emt 0:00:04]} 34. Kg2 {[%emt 0:00:00]} Qe4+ {[%emt 0:00:12]} 35. Kh3 {[%emt 0:00:33]} g6 {[%emt 0:00:52]} 36. Qf3 {[%emt 0:00:12]} Qf5+ {[%emt 0:00:08]} 37. Kg2 {[%emt 0:00:05]} f6 {[%emt 0:00:08]} 38. Qc3 {[%emt 0:00:09]} Qe4+ {[%emt 0:00:28]} 39. Kh3 {[%emt 0:00:02]} Qf5+ {[%emt 0:00:07]} 40. Kg2 {[%emt 0:00:01]} Qe4+ {[%emt 0:00:00]} 41. Rf3 {[%emt 0:00:22]} Qe2+ {[%emt 0:00:04]} 42. Rf2 {[%emt 0:00:11]} Qe4+ {[%emt 0:00:01]} 43. Qf3 {[%emt 0:00:07]} Qxf3+ {[%emt 0:00:53]} 44. Kxf3 {[%emt 0:00:02]} Kf7 {[%emt 0:00:01]} 45. Ke4 {[%emt 0:00:11]} 1/2-1/2

[Event "RUS-chT Rapid Men 2018"]
[Site "Sochi"]
[Date "2018.10.08"]
[Round "2"]
[White "Garifullina, Leya"]
[Black "Shariyazdanov, Andrey"]
[Result "1-0"]
[ECO "B06"]
[WhiteElo "2106"]
[BlackElo "2526"]
[Annotator "ChessBase"]
[PlyCount "71"]
[EventDate "2018.10.05"]
[EventType "swiss"]
[EventCountry "RUS"]
[SourceTitle "playchess.com"]
[Source "ChessBase"]
[SourceQuality "1"]
[TimeControl "900+10"]

1. e4 {[%emt 0:00:00]} g6 {[%emt 0:00:00]} 2. d4 {[%emt 0:00:00]} Bg7 {[%emt 0:00:00]} 3. Nc3 {[%emt 0:00:00]} d6 {[%emt 0:00:00]} 4. Be3 {[%emt 0:00:00]} Nd7 {[%emt 0:00:00]} 5. h4 {[%emt 0:00:09]} Ngf6 {[%emt 0:00:07]} 6. f3 {[%emt 0:00:14]} e5 {[%emt 0:00:15]} 7. d5 {[%emt 0:00:08]} Nh5 {[%emt 0:00:52]} 8. Nge2 {[%emt 0:00:16]} f5 {[%emt 0:00:06]} 9. Qd2 {[%emt 0:00:30]} Ndf6 {[%emt 0:00:29]} 10. exf5 {[%emt 0:00:27]} gxf5 {[%emt 0:00:02]} 11. O-O-O {[%emt 0:00:04]} f4 {[%emt 0:00:32]} 12. Bf2 {[%emt 0:00:11]} Bf5 {[%emt 0:00:01]} 13. g4 {[%emt 0:00:38]} fxg3 {[%emt 0:00:06]} 14. Nxg3 {[%emt 0:00:03]} Nxg3 {[%emt 0:00:18]} 15. Bxg3 {[%emt 0:00:01]} Nh5 {[%emt 0:00:02]} 16. Bf2 {[%emt 0:00:32]} Qf6 {[%emt 0:00:10]} 17. Bb5+ {[%emt 0:00:20]} Kf7 {[%emt 0:02:52]} 18. Be3 {[%emt 0:00:56]} Nf4 {[%emt 0:00:11]} 19. Ne4 {[%emt 0:00:55]} Bxe4 {[%emt 0:00:02]} 20. fxe4 {[%emt 0:00:02]} Bh6 {[%emt 0:00:31]} 21. Kb1 {[%emt 0:00:30]} a6 {[%emt 0:00:16]} 22. Bd7 {[%emt 0:00:09]} Ke7 {[%emt 0:00:10]} 23. Bf5 {[%emt 0:00:07]} Rag8 {[%emt 0:00:17]} 24. Qc3 {[%emt 0:00:12]} Kd8 {[%emt 0:00:02]} 25. Qb3 {[%emt 0:00:01]} b6 {[%emt 0:00:14]} 26. Qc4 {[%emt 0:00:21]} Rg3 {[%emt 0:02:26]} 27. Bc1 {[%emt 0:00:11]} a5 {[%emt 0:03:21]} 28. Qa6 {[%emt 0:00:11]} Ke8 {[%emt 0:00:14]} 29. Qb5+ {[%emt 0:01:15]} Kf7 {[%emt 0:00:23]} 30. Rhg1 {[%emt 0:01:37]} Rxg1 {[%emt 0:00:19]} 31. Rxg1 {[%emt 0:00:02]} Qe7 {[%emt 0:00:29]} 32. Bxf4 {[%emt 0:01:19]} Bxf4 {[%emt 0:01:46]} 33. Be6+ {[%emt 0:00:01]} Kf6 {[%emt 0:00:22]} 34. Qc4 {[%emt 0:00:38]} Qd8 {[%emt 0:01:24]} 35. Qc3 {[%emt 0:00:25]} Re8 {[%emt 0:00:10]} 36. Qh3 {[%emt 0:00:10]} 1-0

[Event "RUS-chT Rapid Men 2018"]
[Site "Sochi"]
[Date "2018.10.08"]
[Round "2"]
[White "Grigoriants, Boris"]
[Black "Riazhskih, Vitaly"]
[Result "0-1"]
[ECO "B40"]
[WhiteElo "1914"]
[BlackElo "2165"]
[Annotator "NA"]
[PlyCount "70"]
[EventDate "2018.10.05"]
[EventType "swiss"]
[EventCountry "RUS"]
[SourceTitle "playchess.com"]
[Source "ChessBase"]
[SourceQuality "1"]
[TimeControl "900+10"]

1. e4 {[%emt 0:00:00]} c5 {[%emt 0:00:00]} 2. Nf3 {[%emt 0:00:00]} e6 {[%emt 0:00:00]} 3. d3 {[%emt 0:00:00]} Nc6 {[%emt 0:00:03]} 4. Nbd2 {[%emt 0:00:00]} g6 {[%emt 0:00:02]} 5. g3 {[%emt 0:00:00]} Bg7 {[%emt 0:00:02]} 6. Bg2 {[%emt 0:00:00]} Nge7 {[%emt 0:00:03]} 7. O-O {[%emt 0:00:02]} O-O {[%emt 0:00:03]} 8. c3 {[%emt 0:00:36]} d6 {[%emt 0:00:13]} 9. a4 Rb8 {[%emt 0:00:04]} 10. Nb3 {[%emt 0:00:43]} b6 {[%emt 0:01:02]} 11. d4 {[%emt 0:00:22]} cxd4 {[%emt 0:00:11]} 12. Nbxd4 {[%emt 0:00:55]} Bb7 {[%emt 0:00:19]} 13. Re1 {[%emt 0:03:15]} a6 {[%emt 0:00:45]} 14. Bg5 {[%emt 0:00:52]} Nxd4 {[%emt 0:00:21]} 15. Nxd4 {[%emt 0:00:21]} h6 {[%emt 0:00:01]} 16. Be3 {[%emt 0:00:41]} e5 {[%emt 0:00:25]} 17. Nc2 {[%emt 0:00:16]} d5 {[%emt 0:00:02]} 18. Qd2 {[%emt 0:00:51]} dxe4 {[%emt 0:01:29]} 19. Bxh6 {[%emt 0:02:52]} Qxd2 {[%emt 0:00:53]} 20. Bxd2 {[%emt 0:00:01]} f5 {[%emt 0:00:40]} 21. c4 {[%emt 0:04:32]} Nc6 {[%emt 0:01:03]} 22. a5 {[%emt 0:01:29]} bxa5 {[%emt 0:00:54]} 23. Bxa5 {[%emt 0:00:22]} Nxa5 {[%emt 0:01:30]} 24. Rxa5 {[%emt 0:00:01]} Rfd8 {[%emt 0:00:04]} 25. Nb4 {[%emt 0:00:28]} Rd2 {[%emt 0:01:33]} 26. b3 {[%emt 0:00:25]} e3 {[%emt 0:01:17]} 27. Rxe3 {[%emt 0:00:11]} Bxg2 {[%emt 0:00:09]} 28. Kxg2 {[%emt 0:00:01]} Rxb4 {[%emt 0:00:02]} 29. Rxa6 {[%emt 0:00:00]} e4 {[%emt 0:00:15]} 30. Rxg6 {[%emt 0:00:04]} Kf7 {[%emt 0:00:03]} 31. Ra6 {[%emt 0:00:12]} Bd4 {[%emt 0:00:06]} 32. Re1 {[%emt 0:00:12]} Rxf2+ {[%emt 0:00:07]} 33. Kh3 {[%emt 0:00:02]} Rb8 {[%emt 0:00:13]} 34. Rh6 {[%emt 0:00:09]} Rxb3 {[%emt 0:00:12]} 35. Rd1 {[%emt 0:00:01]} Rbb2 {[%emt 0:00:07]} 0-1

[Event "RUS-chT Rapid Men 2018"]
[Site "Sochi"]
[Date "2018.10.08"]
[Round "2"]
[White "Babayan, Arman S."]
[Black "Kostin, Alexey"]
[Result "1-0"]
[ECO "A16"]
[WhiteElo "1673"]
[BlackElo "2253"]
[Annotator "NA"]
[PlyCount "117"]
[EventDate "2018.10.05"]
[EventType "swiss"]
[EventCountry "RUS"]
[SourceTitle "playchess.com"]
[Source "ChessBase"]
[SourceQuality "1"]
[TimeControl "900+10"]

1. c4 {[%emt 0:00:00]} Nf6 {[%emt 0:00:00]} 2. Nc3 {[%emt 0:00:00]} c5 {[%emt 0:00:00]} 3. Nf3 {[%emt 0:00:00]} e6 {[%emt 0:00:00]} 4. e3 {[%emt 0:00:00]} Be7 {[%emt 0:00:02]} 5. Be2 {[%emt 0:00:04]} b6 {[%emt 0:00:05]} 6. O-O {[%emt 0:00:03]} Bb7 {[%emt 0:00:02]} 7. b3 {[%emt 0:00:10]} O-O {[%emt 0:00:07]} 8. Bb2 {[%emt 0:00:01]} d6 {[%emt 0:00:06]} 9. d4 {[%emt 0:00:17]} cxd4 {[%emt 0:00:05]} 10. exd4 {[%emt 0:00:03]} d5 {[%emt 0:00:11]} 11. Rc1 {[%emt 0:03:16]} Nbd7 {[%emt 0:00:14]} 12. Qc2 {[%emt 0:03:52]} Rc8 {[%emt 0:00:10]} 13. cxd5 {[%emt 0:02:40]} Nxd5 {[%emt 0:00:04]} 14. Qd2 {[%emt 0:00:15]} Bb4 {[%emt 0:00:19]} 15. a3 {[%emt 0:01:15]} Nxc3 {[%emt 0:00:10]} 16. Bxc3 {[%emt 0:00:02]} Bxa3 {[%emt 0:01:16]} 17. Ra1 {[%emt 0:00:01]} Bd6 {[%emt 0:00:11]} 18. Rxa7 {[%emt 0:00:18]} Bxf3 {[%emt 0:01:25]} 19. Bxf3 {[%emt 0:00:01]} Rxc3 {[%emt 0:00:05]} 20. Qxc3 {[%emt 0:00:10]} Nf6 {[%emt 0:00:43]} 21. Ra8 {[%emt 0:00:31]} Bb8 {[%emt 0:00:09]} 22. Rc1 {[%emt 0:01:38]} h6 {[%emt 0:00:20]} 23. Kh1 {[%emt 0:00:26]} Nh7 {[%emt 0:01:34]} 24. g3 {[%emt 0:01:42]} Qg5 {[%emt 0:00:07]} 25. Qe3 {[%emt 0:00:30]} Qf6 {[%emt 0:00:20]} 26. d5 {[%emt 0:00:28]} Ng5 {[%emt 0:00:12]} 27. Bg2 {[%emt 0:00:10]} e5 {[%emt 0:00:55]} 28. h4 {[%emt 0:00:35]} Nh7 {[%emt 0:00:02]} 29. Rc6 {[%emt 0:00:04]} Qf5 {[%emt 0:00:03]} 30. Qxb6 {[%emt 0:00:38]} Nf6 {[%emt 0:00:40]} 31. Rxf6 {[%emt 0:00:17]} Qxf6 {[%emt 0:00:28]} 32. Rxb8 {[%emt 0:00:01]} Rxb8 {[%emt 0:00:02]} 33. Qxb8+ {[%emt 0:00:01]} Kh7 {[%emt 0:00:01]} 34. Qa7 {[%emt 0:00:22]} g5 {[%emt 0:00:19]} 35. h5 {[%emt 0:00:29]} Kg7 {[%emt 0:00:14]} 36. Qe3 {[%emt 0:00:06]} Qd6 {[%emt 0:00:21]} 37. b4 {[%emt 0:00:06]} f5 {[%emt 0:00:31]} 38. Qc5 {[%emt 0:00:04]} Qf6 {[%emt 0:00:06]} 39. Qc7+ {[%emt 0:00:09]} Kf8 {[%emt 0:00:15]} 40. Qc8+ {[%emt 0:00:06]} Ke7 {[%emt 0:00:11]} 41. Qc7+ {[%emt 0:00:18]} Kf8 {[%emt 0:00:04]} 42. d6 {[%emt 0:00:02]} Qf7 {[%emt 0:00:31]} 43. d7 {[%emt 0:00:11]} Qxh5+ {[%emt 0:00:02]} 44. Kg1 {[%emt 0:00:07]} Qd1+ {[%emt 0:00:04]} 45. Bf1 {[%emt 0:00:01]} Ke7 {[%emt 0:00:06]} 46. Qxe5+ {[%emt 0:00:06]} Kxd7 {[%emt 0:00:05]} 47. Qxf5+ {[%emt 0:00:02]} Ke7 {[%emt 0:00:19]} 48. Qh7+ {[%emt 0:00:06]} Kf6 {[%emt 0:00:01]} 49. Qxh6+ {[%emt 0:00:02]} Kf5 {[%emt 0:00:07]} 50. Qf8+ {[%emt 0:00:08]} Kg4 {[%emt 0:00:09]} 51. Qc8+ {[%emt 0:00:04]} Kh5 {[%emt 0:00:07]} 52. b5 {[%emt 0:00:18]} Qb1 {[%emt 0:00:14]} 53. Qe8+ {[%emt 0:00:11]} Kh6 {[%emt 0:00:13]} 54. Qe6+ {[%emt 0:00:06]} Kh5 {[%emt 0:00:08]} 55. b6 {[%emt 0:00:02]} g4 {[%emt 0:00:03]} 56. Qf7+ {[%emt 0:00:04]} Kh6 {[%emt 0:00:16]} 57. b7 {[%emt 0:00:03]} Qb6 {[%emt 0:00:15]} 58. Qf8+ {[%emt 0:00:05]} Kh7 {[%emt 0:00:08]} 59. b8=Q {[%emt 0:00:08]} 1-0

[Event "RUS-chT Rapid Men 2018"]
[Site "Sochi"]
[Date "2018.10.08"]
[Round "3"]
[White "Chigaev, Maksim"]
[Black "Alexeev, Alexey"]
[Result "1/2-1/2"]
[ECO "C50"]
[WhiteElo "2599"]
[BlackElo "2287"]
[Annotator "ChessBase"]
[PlyCount "211"]
[EventDate "2018.10.05"]
[EventType "swiss"]
[EventCountry "RUS"]
[SourceTitle "playchess.com"]
[Source "ChessBase"]
[SourceQuality "1"]
[TimeControl "900+10"]

1. e4 {[%emt 0:00:00]} e5 {[%emt 0:00:00]} 2. Nf3 {[%emt 0:00:00]} Nc6 {[%emt 0:00:00]} 3. Bc4 {[%emt 0:00:00]} Bc5 {[%emt 0:00:00]} 4. O-O {[%emt 0:00:00]} Nf6 {[%emt 0:00:02]} 5. d3 {[%emt 0:00:00]} d6 {[%emt 0:00:08]} 6. a4 {[%emt 0:00:02]} a5 {[%emt 0:00:10]} 7. c3 {[%emt 0:00:09]} O-O {[%emt 0:00:22]} 8. Bg5 {[%emt 0:00:28]} h6 {[%emt 0:00:11]} 9. Bh4 {[%emt 0:00:01]} Be6 {[%emt 0:00:16]} 10. Nbd2 {[%emt 0:00:13]} Qe7 {[%emt 0:01:29]} 11. Bd5 {[%emt 0:03:20]} g5 {[%emt 0:01:17]} 12. Nxg5 {[%emt 0:00:15]} hxg5 {[%emt 0:02:55]} 13. Bxg5 {[%emt 0:00:02]} Kg7 {[%emt 0:00:05]} 14. Qf3 {[%emt 0:00:18]} Rh8 {[%emt 0:00:07]} 15. Nc4 {[%emt 0:03:29]} Nb8 {[%emt 0:01:53]} 16. d4 {[%emt 0:03:18]} exd4 {[%emt 0:01:00]} 17. cxd4 {[%emt 0:00:09]} Bxd4 {[%emt 0:01:10]} 18. Rad1 {[%emt 0:00:02]} c5 {[%emt 0:00:21]} 19. Qg3 {[%emt 0:01:55]} Kf8 {[%emt 0:01:18]} 20. Nxd6 {[%emt 0:01:56]} Nbd7 {[%emt 0:00:42]} 21. Bxb7 {[%emt 0:00:36]} Rd8 {[%emt 0:04:31]} 22. Rxd4 {[%emt 0:00:17]} cxd4 {[%emt 0:00:01]} 23. e5 {[%emt 0:00:01]} Nxe5 {[%emt 0:00:27]} 24. Qxe5 {[%emt 0:00:02]} Qxd6 {[%emt 0:00:07]} 25. Bxf6 {[%emt 0:00:06]} Qxe5 {[%emt 0:00:08]} 26. Bxe5 {[%emt 0:00:01]} Rh5 {[%emt 0:00:08]} 27. f4 {[%emt 0:00:02]} d3 {[%emt 0:00:05]} 28. Bf3 {[%emt 0:00:31]} Rh6 {[%emt 0:00:30]} 29. Bc3 {[%emt 0:00:30]} Bb3 {[%emt 0:00:07]} 30. Bxa5 {[%emt 0:00:06]} Rd4 {[%emt 0:00:09]} 31. Bc3 {[%emt 0:01:26]} Rxa4 {[%emt 0:00:02]} 32. h3 {[%emt 0:00:07]} Rxf4 {[%emt 0:00:10]} 33. Bd2 {[%emt 0:00:02]} Rhf6 {[%emt 0:00:01]} 34. Bxf4 {[%emt 0:00:04]} Rxf4 {[%emt 0:00:03]} 35. Rf2 {[%emt 0:00:02]} Rb4 {[%emt 0:00:25]} 36. Rd2 {[%emt 0:00:06]} Bc2 {[%emt 0:00:06]} 37. Kf2 {[%emt 0:00:08]} Rxb2 {[%emt 0:00:11]} 38. Be4 {[%emt 0:00:15]} Rb6 {[%emt 0:00:23]} 39. Bxd3 {[%emt 0:00:05]} Rf6+ {[%emt 0:00:02]} 40. Ke3 {[%emt 0:00:14]} Bb3 {[%emt 0:00:03]} 41. Be4 {[%emt 0:00:04]} Rf1 {[%emt 0:00:09]} 42. Bf3 {[%emt 0:00:06]} Be6 {[%emt 0:00:05]} 43. Kf4 {[%emt 0:00:05]} Ra1 {[%emt 0:00:04]} 44. Rd4 {[%emt 0:00:09]} Rc1 {[%emt 0:00:05]} 45. Kg3 {[%emt 0:00:25]} Rc4 {[%emt 0:00:04]} 46. Rd8+ {[%emt 0:00:04]} Kg7 {[%emt 0:00:01]} 47. Rd2 {[%emt 0:00:23]} Rb4 {[%emt 0:00:01]} 48. Kf2 {[%emt 0:00:07]} Ra4 {[%emt 0:00:05]} 49. Rd3 {[%emt 0:00:03]} Rb4 {[%emt 0:00:01]} 50. Rd1 {[%emt 0:00:24]} Ra4 {[%emt 0:00:02]} 51. Kg3 {[%emt 0:00:05]} Rb4 {[%emt 0:00:01]} 52. h4 {[%emt 0:00:10]} Ra4 {[%emt 0:00:07]} 53. Rc1 {[%emt 0:00:08]} Rc4 {[%emt 0:00:04]} 54. Re1 {[%emt 0:00:03]} Rb4 {[%emt 0:00:10]} 55. Re5 {[%emt 0:00:06]} Rd4 {[%emt 0:00:09]} 56. Rg5+ {[%emt 0:00:01]} Kh6 {[%emt 0:00:23]} 57. Re5 {[%emt 0:00:13]} Kg7 {[%emt 0:00:08]} 58. Re3 {[%emt 0:01:00]} Rb4 {[%emt 0:00:06]} 59. Re5 {[%emt 0:00:07]} Rd4 {[%emt 0:00:03]} 60. Ra5 {[%emt 0:00:09]} Rb4 {[%emt 0:00:10]} 61. Ra1 {[%emt 0:00:16]} Rd4 {[%emt 0:00:16]} 62. Ra5 {[%emt 0:00:11]} Rb4 {[%emt 0:00:05]} 63. Rg5+ {[%emt 0:00:19]} Kh6 {[%emt 0:00:03]} 64. Re5 {[%emt 0:00:02]} Kg7 {[%emt 0:00:01]} 65. Be4 {[%emt 0:00:23]} Kf6 {[%emt 0:00:29]} 66. Kf4 {[%emt 0:00:01]} Bc8 {[%emt 0:00:12]} 67. h5 {[%emt 0:00:31]} Kg7 {[%emt 0:01:18]} 68. Re7 {[%emt 0:00:12]} Kf6 {[%emt 0:00:39]} 69. Rc7 {[%emt 0:00:10]} Be6 {[%emt 0:00:05]} 70. Rc5 {[%emt 0:00:09]} Kg7 {[%emt 0:00:05]} 71. Re5 {[%emt 0:00:04]} Bc8 {[%emt 0:00:17]} 72. g4 {[%emt 0:00:17]} Bb7 {[%emt 0:00:12]} 73. g5 {[%emt 0:00:00]} Bxe4 {[%emt 0:00:04]} 74. Rxe4 {[%emt 0:00:01]} Rb1 {[%emt 0:00:03]} 75. Kf5 {[%emt 0:00:07]} Rf1+ {[%emt 0:00:06]} 76. Rf4 {[%emt 0:00:02]} Ra1 {[%emt 0:00:01]} 77. Rf3 {[%emt 0:00:25]} Ra5+ {[%emt 0:00:02]} 78. Kg4 {[%emt 0:00:01]} Ra6 {[%emt 0:00:09]} 79. Re3 {[%emt 0:00:13]} Rb6 {[%emt 0:00:01]} 80. Kf5 {[%emt 0:00:05]} Ra6 {[%emt 0:00:37]} 81. Re5 {[%emt 0:00:35]} Rb6 {[%emt 0:00:28]} 82. h6+ {[%emt 0:00:08]} Kh7 {[%emt 0:00:02]} 83. Re7 {[%emt 0:00:02]} Kg8 {[%emt 0:00:03]} 84. Re8+ {[%emt 0:00:00]} Kh7 {[%emt 0:00:04]} 85. Rf8 {[%emt 0:00:01]} Rb5+ {[%emt 0:00:26]} 86. Kf6 {[%emt 0:00:02]} Rb6+ {[%emt 0:00:17]} 87. Kxf7 {[%emt 0:00:03]} Rb7+ {[%emt 0:00:01]} 88. Kf6 {[%emt 0:00:03]} Rb6+ {[%emt 0:00:02]} 89. Kf5 {[%emt 0:00:04]} Rb5+ {[%emt 0:00:19]} 90. Kf6 {[%emt 0:00:12]} Rb6+ {[%emt 0:00:01]} 91. Ke7 {[%emt 0:00:22]} Rb7+ {[%emt 0:00:09]} 92. Kd6 {[%emt 0:00:02]} Rb6+ {[%emt 0:00:05]} 93. Kc5 {[%emt 0:00:17]} Ra6 {[%emt 0:00:10]} 94. Rf7+ {[%emt 0:00:40]} Kg8 {[%emt 0:00:02]} 95. Rg7+ {[%emt 0:00:28]} Kh8 {[%emt 0:00:01]} 96. Rb7 {[%emt 0:00:07]} Rg6 {[%emt 0:00:06]} 97. Rb8+ {[%emt 0:00:07]} Kh7 {[%emt 0:00:03]} 98. Rb7+ {[%emt 0:00:01]} Kh8 {[%emt 0:00:01]} 99. Kd5 {[%emt 0:00:18]} Rxg5+ {[%emt 0:00:03]} 100. Ke6 {[%emt 0:00:00]} Rg8 {[%emt 0:00:10]} 101. Kf6 {[%emt 0:00:02]} Rc8 {[%emt 0:00:05]} 102. Re7 {[%emt 0:00:03]} Rb8 {[%emt 0:00:15]} 103. Kg6 {[%emt 0:00:06]} Ra8 {[%emt 0:00:09]} 104. Re6 {[%emt 0:00:11]} Rb8 {[%emt 0:00:08]} 105. h7 {[%emt 0:00:06]} Rb6 {[%emt 0:00:20]} 106. Rxb6 {[%emt 0:00:03]} 1/2-1/2

[Event "RUS-chT Rapid Men 2018"]
[Site "Sochi"]
[Date "2018.10.08"]
[Round "3"]
[White "Bocharov, Ivan"]
[Black "Ozgibcev, Anatoly"]
[Result "1-0"]
[ECO "C55"]
[WhiteElo "2563"]
[BlackElo "2368"]
[Annotator "RC"]
[PlyCount "111"]
[EventDate "2018.10.05"]
[EventType "swiss"]
[EventCountry "RUS"]
[SourceTitle "playchess.com"]
[Source "ChessBase"]
[SourceQuality "1"]
[TimeControl "900+10"]

1. e4 {[%emt 0:00:00]} e5 {[%emt 0:00:00]} 2. Bc4 {[%emt 0:00:00]} Nf6 {[%emt 0:00:06]} 3. d3 {[%emt 0:00:00]} Nc6 {[%emt 0:00:09]} 4. Nf3 {[%emt 0:00:00]} Be7 {[%emt 0:00:04]} 5. O-O {[%emt 0:00:00]} O-O {[%emt 0:00:02]} 6. Re1 {[%emt 0:00:00]} d6 {[%emt 0:00:02]} 7. a4 {[%emt 0:00:00]} Be6 {[%emt 0:00:23]} 8. Nbd2 {[%emt 0:00:05]} Bxc4 {[%emt 0:00:06]} 9. Nxc4 {[%emt 0:00:01]} Re8 {[%emt 0:00:23]} 10. a5 {[%emt 0:00:22]} a6 {[%emt 0:00:03]} 11. c3 {[%emt 0:00:04]} h6 {[%emt 0:00:42]} 12. Qb3 {[%emt 0:00:35]} Rb8 {[%emt 0:00:10]} 13. Ne3 {[%emt 0:00:16]} Bf8 {[%emt 0:01:29]} 14. Nf5 {[%emt 0:01:07]} Qd7 {[%emt 0:00:26]} 15. c4 {[%emt 0:02:00]} Nd8 {[%emt 0:02:57]} 16. Be3 {[%emt 0:00:46]} c6 {[%emt 0:00:58]} 17. Qc2 {[%emt 0:03:59]} c5 {[%emt 0:01:11]} 18. Qd2 {[%emt 0:01:19]} Nc6 {[%emt 0:00:22]} 19. h3 {[%emt 0:00:04]} b6 {[%emt 0:01:15]} 20. axb6 {[%emt 0:00:02]} Rxb6 {[%emt 0:00:01]} 21. Qe2 {[%emt 0:02:52]} a5 {[%emt 0:01:24]} 22. Bc1 {[%emt 0:00:14]} Ra8 {[%emt 0:00:40]} 23. Nd2 {[%emt 0:01:30]} g6 {[%emt 0:01:20]} 24. Ne3 {[%emt 0:00:01]} Nd4 {[%emt 0:00:01]} 25. Qd1 {[%emt 0:00:01]} Bg7 {[%emt 0:00:58]} 26. Nd5 {[%emt 0:00:16]} Rb7 {[%emt 0:00:22]} 27. Ra3 {[%emt 0:00:35]} h5 {[%emt 0:00:30]} 28. Nb1 {[%emt 0:01:01]} Nxd5 {[%emt 0:00:41]} 29. cxd5 {[%emt 0:00:01]} Bf6 {[%emt 0:00:55]} 30. Nd2 {[%emt 0:00:05]} Bd8 {[%emt 0:00:04]} 31. Nc4 {[%emt 0:00:02]} a4 {[%emt 0:00:18]} 32. Be3 {[%emt 0:00:06]} Nb3 {[%emt 0:00:14]} 33. f4 {[%emt 0:00:13]} exf4 {[%emt 0:00:09]} 34. Bxf4 {[%emt 0:00:01]} Be7 {[%emt 0:00:02]} 35. Rf1 {[%emt 0:00:14]} Ra6 {[%emt 0:00:22]} 36. Qf3 {[%emt 0:01:09]} Nd4 {[%emt 0:00:05]} 37. Qf2 {[%emt 0:00:05]} Bf8 {[%emt 0:00:13]} 38. Kh1 {[%emt 0:00:35]} Bg7 {[%emt 0:00:13]} 39. Raa1 {[%emt 0:00:19]} Rb3 {[%emt 0:00:06]} 40. Rad1 {[%emt 0:00:09]} Nb5 {[%emt 0:00:15]} 41. Rd2 {[%emt 0:00:50]} a3 {[%emt 0:00:19]} 42. bxa3 {[%emt 0:00:01]} Nxa3 {[%emt 0:00:02]} 43. Ne3 {[%emt 0:00:41]} Nb5 {[%emt 0:00:10]} 44. Qh4 {[%emt 0:00:06]} Rba3 {[%emt 0:00:31]} 45. Nc4 {[%emt 0:00:05]} Ra1 {[%emt 0:00:16]} 46. Rdf2 {[%emt 0:00:10]} Rxf1+ 47. Rxf1 Ra7 {[%emt 0:01:02]} 48. Qg3 {[%emt 0:00:03]} Ra6 {[%emt 0:00:05]} 49. Bg5 {[%emt 0:00:02]} Bf8 {[%emt 0:00:13]} 50. Bf6 {[%emt 0:00:04]} Qa7 {[%emt 0:00:07]} 51. Qh4 {[%emt 0:00:24]} Ra2 {[%emt 0:00:15]} 52. g4 {[%emt 0:00:15]} Re2 {[%emt 0:00:10]} 53. gxh5 {[%emt 0:00:04]} Qa2 {[%emt 0:00:01]} 54. Qg3 {[%emt 0:00:00]} Kh7 {[%emt 0:00:04]} 55. hxg6+ {[%emt 0:00:26]} fxg6 {[%emt 0:00:01]} 56. Rg1 {[%emt 0:00:03]} 1-0

[Event "RUS-chT Rapid Men 2018"]
[Site "Sochi"]
[Date "2018.10.08"]
[Round "3"]
[White "Savchenko, Boris"]
[Black "Shcherbakov, Ruslan"]
[Result "1-0"]
[ECO "C36"]
[WhiteElo "2562"]
[BlackElo "2516"]
[Annotator "ChessBase"]
[PlyCount "43"]
[EventDate "2018.10.05"]
[EventType "swiss"]
[EventCountry "RUS"]
[SourceTitle "playchess.com"]
[Source "ChessBase"]
[SourceQuality "1"]
[TimeControl "900+10"]

1. e4 {[%emt 0:00:00]} e5 {[%emt 0:00:00]} 2. f4 {[%emt 0:00:00]} d5 {[%emt 0:00:25]} 3. exd5 {[%emt 0:00:00]} exf4 {[%emt 0:00:02]} 4. Nf3 {[%emt 0:00:01]} Nf6 {[%emt 0:00:09]} 5. Bb5+ {[%emt 0:00:02]} c6 {[%emt 0:01:28]} 6. dxc6 {[%emt 0:00:03]} Nxc6 {[%emt 0:00:12]} 7. d4 {[%emt 0:00:02]} Bd6 {[%emt 0:00:57]} 8. O-O {[%emt 0:00:12]} O-O {[%emt 0:00:18]} 9. c3 {[%emt 0:00:05]} Nd5 {[%emt 0:01:54]} 10. Re1 {[%emt 0:01:37]} Bg4 {[%emt 0:00:26]} 11. Bd3 {[%emt 0:00:07]} Qf6 {[%emt 0:00:21]} 12. Nbd2 {[%emt 0:00:09]} Qh6 {[%emt 0:02:43]} 13. h3 {[%emt 0:03:31]} Bh5 {[%emt 0:01:11]} 14. Ne4 {[%emt 0:02:35]} Bc7 {[%emt 0:00:17]} 15. Qe2 {[%emt 0:02:23]} Rae8 {[%emt 0:00:32]} 16. Qf2 {[%emt 0:00:03]} Ne3 {[%emt 0:01:21]} 17. Bxe3 {[%emt 0:01:54]} fxe3 {[%emt 0:00:02]} 18. Rxe3 {[%emt 0:00:04]} Bf4 {[%emt 0:03:48]} 19. Ree1 {[%emt 0:01:20]} f5 {[%emt 0:00:02]} 20. Bc4+ {[%emt 0:00:38]} Bf7 {[%emt 0:01:00]} 21. Bxf7+ {[%emt 0:00:05]} Rxf7 {[%emt 0:00:03]} 22. Nf6+ {[%emt 0:00:02]} 1-0